bitfinex/quotes_BTCUSD_20241018
["timestamp","ask_amount","ask_price","bid_price","bid_amount"]
[1729288262442,0.51473238,68415.0,68414.0,0.4273634]
[1729288262443,0.45541981,68415.0,68414.0,0.4273634]
[1729288264245,0.46910779,68415.0,68414.0,0.4273634]
[1729288265749,0.45815585,68415.0,68414.0,0.4273634]
[1729288266147,0.46910631,68415.0,68414.0,0.4273634]
[1729288267496,0.40888339,68415.0,68414.0,0.4273634]
[1729288267705,0.43625997,68415.0,68414.0,0.4273634]
[1729288267919,0.46911187,68415.0,68414.0,0.4273634]
[1729288269592,0.46911201,68415.0,68414.0,0.4273634]
[1729288270461,0.45542372,68415.0,68414.0,0.4273634]
[1729288271303,0.46911195,68415.0,68414.0,0.4273634]
[1729288272528,0.64600806,68415.0,68414.0,0.4273634]
[1729288272752,0.51486922,68415.0,68414.0,0.3273634]
[1729288273371,0.50118099,68415.0,68414.0,0.3273634]
[1729288274163,0.50200899,68415.0,68414.0,0.3273634]
[1729288277314,0.51569674,68415.0,68414.0,0.3273634]
[1729288277719,0.49105681,68415.0,68414.0,0.3273634]
[1729288277873,0.51569476,68415.0,68414.0,0.3273634]
[1729288278277,0.40560701,68415.0,68414.0,0.3273634]
[1729288279358,0.4192947,68415.0,68414.0,0.3273634]
[1729288279761,0.419295,68415.0,68414.0,0.3273634]
[1729288280359,0.40560701,68415.0,68414.0,0.3273634]
[1729288281965,0.4056024,68415.0,68414.0,0.3273634]
[1729288285710,0.35906405,68415.0,68414.0,0.3273634]
[1729288285921,0.40561882,68415.0,68414.0,0.3273634]
[1729288286773,0.73882783,68415.0,68414.0,0.09116219]
[1729288286984,0.71739235,68415.0,68414.0,0.00804257]
[1729288287214,0.002,68405.0,68404.0,0.001656]
[1729288287399,0.33727275,68405.0,68404.0,0.001656]
[1729288287636,0.35918088,68405.0,68404.0,0.001656]
[1729288289626,0.32158017,68405.0,68396.0,0.1]
[1729288289843,0.06563678,68397.0,68396.0,0.1]
[1729288290053,0.23921435,68397.0,68396.0,0.1]
[1729288290485,0.17357757,68397.0,68394.0,0.077456]
[1729288290694,0.04375015,68395.0,68394.0,0.077456]
[1729288290912,0.05469166,68395.0,68394.0,0.077456]
[1729288291128,0.05469162,68395.0,68394.0,0.001656]
[1729288291347,0.18610024,68395.0,68394.0,0.001656]
[1729288291568,0.02661183,68395.0,68394.0,0.001656]
[1729288291987,0.18805625,68395.0,68394.0,0.001656]
[1729288292398,0.09220084,68395.0,68394.0,0.001656]
[1729288292602,0.09020084,68395.0,68394.0,0.001656]
[1729288293410,0.02461183,68395.0,68394.0,0.001656]
[1729288293811,0.01366306,68395.0,68394.0,0.001656]
[1729288294010,0.09018252,68395.0,68394.0,0.001656]
[1729288294631,0.09015614,68395.0,68394.0,0.001656]
[1729288296575,0.02459351,68395.0,68394.0,0.001656]
[1729288296878,0.18588727,68395.0,68394.0,0.001656]
[1729288297294,0.2733875,68395.0,68394.0,0.001656]
[1729288297506,0.18588727,68395.0,68394.0,0.001656]
[1729288297959,0.18586905,68395.0,68394.0,0.001656]
[1729288301826,0.16129376,68395.0,68394.0,0.001656]
[1729288302061,0.17494371,68395.0,68394.0,0.001656]
[1729288302285,0.18586359,68395.0,68394.0,0.001656]
[1729288303552,0.02456983,68395.0,68394.0,0.001656]
[1729288305568,0.02656983,68395.0,68394.0,0.001656]
[1729288305773,0.01091988,68395.0,68394.0,0.001656]
[1729288305980,0.02457131,68395.0,68394.0,0.001656]
[1729288306804,0.18581362,68395.0,68394.0,0.001656]
[1729288307037,0.02457131,68395.0,68394.0,0.001656]
[1729288308364,0.02657131,68395.0,68394.0,0.001656]
[1729288308772,0.02661131,68395.0,68394.0,0.001656]
[1729288309184,0.02461131,68395.0,68394.0,0.001656]
[1729288309563,0.03827104,68395.0,68394.0,0.001656]
[1729288309994,0.01096063,68395.0,68394.0,0.001656]
[1729288310234,0.03829147,68395.0,68394.0,0.001656]
[1729288313760,0.02463023,68395.0,68394.0,0.001656]
[1729288314670,0.0383056,68395.0,68394.0,0.001656]
[1729288315803,0.19960076,68395.0,68394.0,0.001656]
[1729288316257,0.27601643,68395.0,68394.0,0.001656]
[1729288316470,0.3633844,68395.0,68394.0,0.001656]
[1729288316948,0.30887061,68395.0,68394.0,0.001656]
[1729288317380,0.31087061,68395.0,68394.0,0.001656]
[1729288317629,0.22350264,68395.0,68394.0,0.001656]
[1729288318315,0.2098637,68395.0,68394.0,0.001656]
[1729288318559,0.22358055,68395.0,68394.0,0.001656]
[1729288318774,0.22360847,68395.0,68394.0,0.001656]
[1729288318988,0.33286431,68395.0,68394.0,0.001656]
[1729288319423,0.33086431,68395.0,68394.0,0.001656]
[1729288320763,0.37848774,68395.0,68394.0,0.001656]
[1729288320984,0.26921738,68395.0,68394.0,0.001656]
[1729288321206,0.25552525,68395.0,68394.0,0.001656]
[1729288321445,0.26922539,68395.0,68394.0,0.001656]
[1729288322361,0.10790231,68395.0,68394.0,0.001656]
[1729288322574,0.26925748,68395.0,68394.0,0.001656]
[1729288323720,0.34133245,68395.0,68394.0,0.001656]
[1729288323945,0.33933245,68395.0,68394.0,0.001656]
[1729288324856,0.26725748,68395.0,68394.0,0.001656]
[1729288325360,0.25356143,68395.0,68394.0,0.001656]
[1729288325565,0.26725514,68395.0,68394.0,0.001656]
[1729288326215,0.24534521,68395.0,68394.0,0.001656]
[1729288327091,0.56570436,68395.0,68383.0,0.001656]
[1729288327305,0.56570436,68395.0,68377.0,0.1]
[1729288327306,0.002,68384.0,68377.0,0.1]
[1729288327521,0.002,68378.0,68376.0,0.21135747]
[1729288327735,0.03834253,68377.0,68376.0,0.21135747]
[1729288327953,0.30904644,68377.0,68373.0,0.001656]
[1729288328186,0.08747356,68374.0,68373.0,0.001656]
[1729288328421,0.2016977,68374.0,68373.0,0.001656]
[1729288328866,0.18800399,68374.0,68373.0,0.001656]
[1729288329525,0.21100399,68374.0,68373.0,0.001656]
[1729288331006,0.37362458,68374.0,68373.0,0.001656]
[1729288331477,0.37358325,68374.0,68373.0,0.001656]
[1729288333578,0.48278007,68374.0,68373.0,0.001656]
[1729288334630,0.37358325,68374.0,68373.0,0.001656]
[1729288335738,0.46091159,68374.0,68373.0,0.001656]
[1729288335949,0.46078143,68374.0,68373.0,0.001656]
[1729288336198,0.47559769,68374.0,68373.0,0.001656]
[1729288336617,0.38826883,68374.0,68373.0,0.001656]
[1729288336841,0.47559769,68374.0,68373.0,0.001656]
[1729288337511,0.38826883,68374.0,68373.0,0.001656]
[1729288337720,0.002,68368.0,68363.0,0.100828]
[1729288337947,0.14895915,68367.0,68363.0,0.100828]
[1729288338156,0.01363654,68366.0,68363.0,0.100828]
[1729288338370,0.14895915,68365.0,68363.0,0.000828]
[1729288339487,0.21826913,68364.0,68363.0,0.000828]
[1729288339769,0.14895915,68364.0,68363.0,0.000828]
[1729288340653,0.16259272,68364.0,68363.0,0.000828]
[1729288343193,0.002,68363.0,68360.0,0.0817]
[1729288343410,0.16459272,68363.0,68360.0,0.0817]
[1729288343639,0.15095915,68363.0,68360.0,0.0817]
[1729288343889,0.14895915,68363.0,68360.0,0.0817]
[1729288344141,0.002,68362.0,68360.0,0.0817]
[1729288344629,0.01363469,68362.0,68360.0,0.0817]
[1729288345110,0.14895915,68361.0,68356.0,0.00042556]
[1729288345340,0.01363469,68360.0,68357.0,0.0817]
[1729288345555,0.14895915,68359.0,68357.0,0.0817]
[1729288347053,0.53872828,68358.0,68356.0,0.00042556]
[1729288347290,0.023,68355.0,68345.0,0.033]
[1729288347494,0.04359263,68351.0,68340.0,0.16098334]
[1729288347712,0.18713385,68350.0,68340.0,0.16098334]
[1729288347944,0.002,68347.0,68337.0,0.0762]
[1729288348177,0.14895915,68346.0,68337.0,0.0762]
[1729288348391,0.02454172,68345.0,68337.0,0.0762]
[1729288348617,0.002,68340.0,68326.0,0.0762]
[1729288348827,0.14895915,68339.0,68328.0,0.21826913]
[1729288349093,0.14895915,68339.0,68326.0,0.0762]
[1729288349540,0.21826913,68338.0,68326.0,0.0762]
[1729288352085,0.21830913,68338.0,68326.0,0.0762]
[1729288353059,0.21830913,68338.0,68326.0,0.09307547]
[1729288353305,0.21830913,68338.0,68316.0,0.21826913]
[1729288353542,0.21830913,68338.0,68317.0,0.43044023]
[1729288353765,0.21830913,68338.0,68317.0,0.17185123]
[1729288355034,0.25533533,68338.0,68317.0,0.17185123]
[1729288355243,0.21830913,68338.0,68326.0,0.001658]
[1729288355452,0.0136191,68337.0,68326.0,0.001658]
[1729288355891,0.0136191,68336.0,68326.0,0.001658]
[1729288356338,0.0136191,68335.0,68327.0,0.0821]
[1729288356559,0.21830913,68338.0,68327.0,0.0821]
[1729288356560,0.0136191,68334.0,68327.0,0.0821]
[1729288356771,0.0136191,68333.0,68327.0,0.0821]
[1729288357012,0.21830913,68338.0,68327.0,0.0821]
[1729288357230,0.0136218,68337.0,68327.0,0.0821]
[1729288357474,0.0136218,68336.0,68327.0,0.0821]
[1729288357703,0.0136218,68335.0,68327.0,0.0821]
[1729288357917,0.0136218,68334.0,68327.0,0.0821]
[1729288358141,0.0136218,68333.0,68327.0,0.0821]
[1729288358365,0.21830913,68338.0,68327.0,0.0821]
[1729288358366,0.0136218,68332.0,68327.0,0.0821]
[1729288358586,0.21830913,68338.0,68327.0,0.0821]
[1729288358821,0.01362438,68337.0,68327.0,0.0821]
[1729288359068,0.01362438,68336.0,68327.0,0.0821]
[1729288359282,0.01362438,68335.0,68327.0,0.0821]
[1729288359552,0.01362438,68334.0,68327.0,0.0821]
[1729288359751,0.01362438,68333.0,68327.0,0.0821]
[1729288359976,0.01362438,68332.0,68327.0,0.0821]
[1729288360224,0.21830913,68338.0,68327.0,0.0821]
[1729288360497,0.0136214,68337.0,68327.0,0.0821]
[1729288360711,0.21826913,68328.0,68327.0,0.0821]
[1729288360935,0.21830913,68338.0,68327.0,0.0821]
[1729288360936,0.36726828,68338.0,68327.0,0.0821]
[1729288361162,0.02451784,68337.0,68327.0,0.0821]
[1729288361404,0.01362102,68336.0,68327.0,0.0821]
[1729288361659,0.01362102,68335.0,68327.0,0.0821]
[1729288361887,0.01362102,68334.0,68327.0,0.0821]
[1729288362144,0.01362102,68333.0,68327.0,0.0821]
[1729288362404,0.21826913,68329.0,68326.0,0.001658]
[1729288362614,0.16258017,68328.0,68326.0,0.001658]
[1729288362835,0.01362102,68327.0,68326.0,0.001658]
[1729288363057,0.16258017,68327.0,68326.0,0.001658]
[1729288364521,0.14895915,68327.0,68326.0,0.001658]
[1729288364737,0.16257327,68327.0,68326.0,0.001658]
[1729288368118,0.16261327,68327.0,68326.0,0.001658]
[1729288368337,0.17350691,68327.0,68326.0,0.001658]
[1729288370260,0.17350691,68327.0,68312.0,0.0821]
[1729288370471,0.25636691,68326.0,68312.0,0.0821]
[1729288370687,0.02450776,68325.0,68312.0,0.0821]
[1729288370915,0.3808424,68324.0,68312.0,0.0821]
[1729288371127,0.01361412,68323.0,68312.0,0.0821]
[1729288371339,0.16257327,68322.0,68312.0,0.0821]
[1729288371552,0.01361412,68321.0,68312.0,0.0821]
[1729288371771,0.16257327,68320.0,68312.0,0.0821]
[1729288371989,0.01361412,68319.0,68312.0,0.0821]
[1729288372477,0.01361412,68319.0,68259.0,0.04355272]
[1729288372478,0.11295835,68281.0,68259.0,0.04355272]
[1729288372695,0.11295835,68281.0,68258.0,0.001658]
[1729288372696,0.10441412,68280.0,68258.0,0.001658]
[1729288372908,0.04345327,68271.0,68216.0,0.0819]
[1729288373126,0.04345327,68269.0,68216.0,0.0819]
[1729288373356,0.04345327,68258.0,68216.0,0.0819]
[1729288373568,0.04345327,68252.0,68216.0,0.0819]
[1729288373795,0.023,68256.0,68216.0,0.0819]
[1729288373796,0.10179402,68251.0,68216.0,0.0819]
[1729288374001,0.2095366,68251.0,68216.0,0.0819]
[1729288374230,0.19592248,68251.0,68200.0,0.00017602]
[1729288374438,0.19592248,68251.0,68250.0,0.80343359]
[1729288374439,0.60600576,68251.0,68250.0,0.80343359]
[1729288374645,0.5145974,68251.0,68250.0,0.80343359]
[1729288375077,0.55964144,68251.0,68250.0,0.80343359]
[1729288375292,0.002,68224.0,68200.0,0.00017602]
[1729288375509,0.1538,68243.0,68200.0,0.00017602]
[1729288375510,0.023,68221.0,68200.0,0.00017602]
[1729288376196,0.002,68212.0,68200.0,0.00017602]
[1729288376410,0.0009898,68223.0,68200.0,0.00017602]
[1729288376626,0.0239898,68223.0,68200.0,0.00017602]
[1729288376836,0.0009898,68223.0,68200.0,0.00017602]
[1729288377058,0.0239898,68223.0,68200.0,0.00017602]
[1729288377271,0.023,68229.0,68200.0,0.00017602]
[1729288377485,0.023,68229.0,68201.0,0.01683453]
[1729288377486,0.0009836,68229.0,68201.0,0.01683453]
[1729288377699,0.0009836,68229.0,68207.0,0.1]
[1729288377918,0.08625055,68250.0,68207.0,0.1]
[1729288377919,0.04312527,68251.0,68207.0,0.859832]
[1729288378138,0.0134316,68250.0,68209.0,0.1]
[1729288378350,0.0009904,68247.0,68211.0,0.1]
[1729288378556,0.0009904,68247.0,68213.0,0.1]
[1729288378822,4e-05,68229.0,68215.0,0.1]
[1729288379983,4e-05,68229.0,68207.0,0.0819]
[1729288379984,0.21988493,68228.0,68217.0,0.1]
[1729288380193,0.2186979,68228.0,68217.0,0.1]
[1729288381942,4e-05,68229.0,68217.0,0.1]
[1729288382165,4e-05,68229.0,68221.0,0.1]
[1729288382408,0.21988493,68228.0,68223.0,0.1]
[1729288382592,0.21988493,68228.0,68225.0,0.1]
[1729288382833,4e-05,68229.0,68227.0,0.1]
[1729288383254,4e-05,68229.0,68191.0,0.07363836]
[1729288383255,4e-05,68229.0,68213.0,0.21988493]
[1729288383519,4e-05,68229.0,68214.0,3.03307415]
[1729288383744,0.21988493,68228.0,68215.0,3.434617]
[1729288383964,0.21988493,68228.0,68216.0,0.14895915]
[1729288384192,0.0010372,68229.0,68216.0,0.14895915]
[1729288384414,0.21988493,68227.0,68217.0,4.237031]
[1729288384625,0.21988493,68227.0,68218.0,0.14895915]
[1729288384807,0.21988493,68227.0,68219.0,2.972518]
[1729288385044,4e-05,68229.0,68220.0,0.14895915]
[1729288385247,0.21988493,68228.0,68221.0,2.391572]
[1729288385455,0.21988493,68228.0,68223.0,0.1]
[1729288385665,0.21988493,68228.0,68224.0,0.14895915]
[1729288385847,4e-05,68229.0,68225.0,0.1]
[1729288386088,4e-05,68229.0,68227.0,0.1]
[1729288386300,4e-05,68229.0,68228.0,0.71190615]
[1729288386504,4e-05,68229.0,68228.0,0.86369915]
[1729288388865,4e-05,68229.0,68228.0,0.24895915]
[1729288390191,4e-05,68229.0,68228.0,0.89976915]
[1729288390403,4e-05,68229.0,68228.0,0.90416315]
[1729288390836,4e-05,68229.0,68228.0,0.92575697]
[1729288391306,0.0009977,68241.0,68228.0,0.92575697]
[1729288391541,0.21988493,68237.0,68229.0,1.436064]
[1729288391754,0.21988493,68237.0,68231.0,0.1]
[1729288391965,0.0009977,68241.0,68233.0,0.1]
[1729288392173,0.0009977,68241.0,68235.0,0.1]
[1729288392385,0.21988493,68244.0,68237.0,0.1]
[1729288392602,0.21988493,68244.0,68239.0,0.1]
[1729288392815,0.22087243,68251.0,68241.0,0.1]
[1729288393005,0.22087243,68251.0,68243.0,0.1]
[1729288393246,0.21988493,68251.0,68245.0,0.1]
[1729288393455,0.21988493,68251.0,68228.0,0.123]
[1729288393640,0.22086753,68258.0,68245.0,0.14895915]
[1729288393901,0.21988493,68250.0,68246.0,0.124941]
[1729288394113,0.21988493,68258.0,68247.0,0.14895915]
[1729288395654,0.21988493,68258.0,68248.0,0.1]
[1729288395879,0.0029974,68259.0,68248.0,0.1]
[1729288395880,0.0009974,68259.0,68250.0,0.1]
[1729288396068,0.0009974,68259.0,68251.0,1.16019215]
[1729288399171,0.0009974,68259.0,68251.0,1.18319215]
[1729288399620,0.0009974,68259.0,68251.0,1.20610185]
[1729288400774,0.21592233,68265.0,68252.0,0.123]
[1729288401012,0.21691573,68265.0,68257.0,0.123]
[1729288401229,0.31508493,68288.0,68259.0,0.123]
[1729288401486,0.31508493,68288.0,68261.0,0.1]
[1729288401715,0.31508493,68288.0,68263.0,0.1]
[1729288401955,0.31508493,68288.0,68265.0,0.1]
[1729288402193,0.31508493,68288.0,68267.0,0.1]
[1729288402432,0.31508493,68288.0,68269.0,0.1]
[1729288402660,0.21988493,68281.0,68271.0,0.1]
[1729288403606,0.21988493,68292.0,68277.0,0.1]
[1729288403842,0.01355588,68291.0,68279.0,0.1]
[1729288404300,0.01355588,68291.0,68279.0,0.24895915]
[1729288404531,0.078062,68298.0,68283.0,0.1]
[1729288404748,0.01355044,68297.0,68283.0,0.1]
[1729288404988,0.078062,68298.0,68283.0,0.1]
[1729288405239,0.078062,68298.0,68286.0,0.1]
[1729288405477,0.0135539,68297.0,68286.0,0.1]
[1729288406156,0.001662,68298.0,68286.0,0.1]
[1729288406424,0.0135594,68297.0,68286.0,0.1]
[1729288406623,0.001662,68298.0,68286.0,0.1]
[1729288406624,0.0135594,68296.0,68286.0,0.1]
[1729288406843,0.0135594,68295.0,68286.0,0.1]
[1729288407120,0.001662,68298.0,68286.0,0.1]
[1729288407325,0.23344737,68297.0,68279.0,0.14895915]
[1729288407551,0.002,68284.0,68280.0,0.81020515]
[1729288407816,0.002,68284.0,68281.0,0.617028]
[1729288408473,0.002,68286.0,68282.0,0.1]
[1729288408695,0.002,68286.0,68281.0,0.1]
[1729288408916,0.002,68286.0,68283.0,0.1]
[1729288410015,0.002,68284.0,68281.0,0.1]
[1729288410237,0.01356621,68295.0,68281.0,0.921005]
[1729288410456,0.001662,68298.0,68283.0,0.1]
[1729288410673,0.01356442,68297.0,68283.0,0.1]
[1729288410879,0.01356442,68296.0,68283.0,0.1]
[1729288411091,0.01356442,68295.0,68283.0,0.1]
[1729288411320,0.001662,68298.0,68283.0,0.1]
[1729288411532,0.01356711,68297.0,68281.0,0.1]
[1729288411744,0.01356711,68296.0,68281.0,0.786105]
[1729288411948,0.01356711,68295.0,68282.0,0.21988493]
[1729288412160,0.01356711,68294.0,68283.0,0.1]
[1729288412372,0.001662,68298.0,68283.0,0.1]
[1729288412607,0.002,68284.0,68283.0,0.1]
[1729288412813,0.002,68273.0,68272.0,0.31988493]
[1729288413245,0.002,68273.0,68272.0,0.1]
[1729288413905,0.002,68267.0,68265.0,0.21988493]
[1729288414117,0.002,68267.0,68244.0,0.22071293]
[1729288414541,0.002,68261.0,68244.0,0.22071293]
[1729288414744,0.002,68263.0,68244.0,0.22071293]
[1729288415188,0.002,68260.0,68253.0,0.21988493]
[1729288415403,0.002,68260.0,68244.0,0.22071293]
[1729288416450,0.002,68260.0,68258.0,0.000828]
[1729288417479,0.002,68259.0,68258.0,0.000828]
[1729288419194,0.002,68260.0,68258.0,0.000828]
[1729288419822,4e-05,68259.0,68258.0,0.000828]
[1729288422045,0.00204,68259.0,68258.0,0.000828]
[1729288422726,0.22059915,68263.0,68258.0,0.000828]
[1729288426209,0.01407914,68262.0,68258.0,0.000828]
[1729288439780,0.001656,68263.0,68258.0,0.000828]
[1729288439781,0.001656,68263.0,68261.0,0.1]
[1729288439994,0.001656,68263.0,68262.0,1.31953715]
[1729288440215,0.001656,68263.0,68262.0,1.24647315]
[1729288440437,0.001656,68263.0,68262.0,0.74897615]
[1729288443231,0.21988493,68274.0,68262.0,0.74897615]
[1729288443487,0.21988493,68274.0,68263.0,1.936726]
[1729288443718,0.21988493,68274.0,68265.0,0.1]
[1729288443969,0.21988493,68290.0,68267.0,0.2693]
[1729288444212,0.21988493,68280.0,68269.0,0.1]
[1729288444444,0.21988493,68290.0,68271.0,0.1]
[1729288444664,0.21988493,68290.0,68273.0,0.1]
[1729288444902,0.21988493,68290.0,68275.0,0.1]
[1729288445137,0.21988493,68290.0,68277.0,0.1]
[1729288445365,0.21988493,68290.0,68279.0,0.1]
[1729288445584,0.0968,68300.0,68281.0,0.1]
[1729288445808,0.0968,68300.0,68283.0,0.1]
[1729288446062,0.0968,68300.0,68281.0,0.1]
[1729288446287,0.0968,68300.0,68283.0,0.1]
[1729288447459,0.0968,68300.0,68281.0,0.1]
[1729288447688,0.0968,68300.0,68285.0,0.1]
[1729288447930,0.0813,68306.0,68285.0,0.1]
[1729288453422,0.0813,68306.0,68286.0,0.00206928]
[1729288454142,0.0813,68306.0,68288.0,0.1]
[1729288455538,0.0813,68306.0,68289.0,0.20679]
[1729288455759,0.001696,68296.0,68286.0,0.663107]
[1729288455991,0.001696,68296.0,68287.0,0.1]
[1729288456217,0.0015196,68296.0,68289.0,0.1]
[1729288457159,0.0015196,68296.0,68289.0,0.24895915]
[1729288458145,0.0015196,68296.0,68290.0,0.14895915]
[1729288458365,0.0015196,68296.0,68291.0,0.1]
[1729288459500,0.0015196,68296.0,68291.0,0.14895915]
[1729288459705,0.0015196,68296.0,68292.0,0.1]
[1729288464026,0.0015196,68296.0,68292.0,0.14895915]
[1729288464438,0.0015196,68296.0,68293.0,0.1]
[1729288464999,0.0015196,68296.0,68293.0,0.24895915]
[1729288469103,0.0015196,68296.0,68293.0,0.27012545]
[1729288471294,0.0015196,68296.0,68293.0,0.24895915]
[1729288471909,0.0015196,68296.0,68295.0,0.1]
[1729288472370,0.0015196,68296.0,68295.0,0.24895915]
[1729288472581,0.0015196,68296.0,68295.0,0.39617415]
[1729288472791,0.0015196,68296.0,68295.0,0.37775915]
[1729288477334,0.0015196,68296.0,68295.0,0.37858715]
[1729288483086,0.0827196,68296.0,68295.0,0.000828]
[1729288483510,0.21749592,68296.0,68295.0,0.000828]
[1729288484369,0.37871801,68296.0,68295.0,0.000828]
[1729288485585,0.4743468,68296.0,68295.0,0.000828]
[1729288485808,0.37871085,68296.0,68295.0,0.000828]
[1729288486265,0.36777524,68296.0,68295.0,0.000828]
[1729288486485,0.4552094,68296.0,68295.0,0.000828]
[1729288488513,0.36777524,68296.0,68295.0,0.000828]
[1729288489367,0.36776718,68296.0,68295.0,0.000828]
[1729288489589,0.20654509,68296.0,68295.0,0.000828]
[1729288490302,0.27210574,68296.0,68295.0,0.000828]
[1729288491652,0.1792196,68296.0,68295.0,0.000828]
[1729288492104,0.22292542,68296.0,68295.0,0.000828]
[1729288492335,0.1792196,68296.0,68295.0,0.000828]
[1729288493034,0.22292339,68296.0,68295.0,0.000828]
[1729288493493,0.1792196,68296.0,68295.0,0.000828]
[1729288494002,0.22292224,68296.0,68295.0,0.000828]
[1729288495295,0.22292114,68296.0,68295.0,0.000828]
[1729288496375,0.1792196,68296.0,68295.0,0.000828]
[1729288506486,0.19286958,68296.0,68295.0,0.000828]
[1729288506702,0.19286992,68296.0,68295.0,0.000828]
[1729288506907,0.1792196,68296.0,68295.0,0.000828]
[1729288508028,0.19287266,68296.0,68295.0,0.000828]
[1729288508257,0.11167557,68296.0,68295.0,0.000828]
[1729288511374,0.12263021,68296.0,68295.0,0.000828]
[1729288511585,0.1363039,68296.0,68295.0,0.000828]
[1729288514862,0.13631778,68296.0,68295.0,0.000828]
[1729288515074,0.03981778,68296.0,68295.0,0.000828]
[1729288516141,0.05307302,68296.0,68295.0,0.000828]
[1729288522706,0.09675579,68296.0,68295.0,0.000828]
[1729288523123,0.08308283,68296.0,68295.0,0.000828]
[1729288523332,0.05309298,68296.0,68295.0,0.000828]
[1729288524554,0.04214073,68296.0,68295.0,0.000828]
[1729288526318,0.04214073,68296.0,68295.0,0.02183997]
[1729288526540,0.08586238,68296.0,68295.0,0.000828]
[1729288527208,0.08587571,68296.0,68295.0,0.000828]
[1729288527660,0.10773654,68296.0,68295.0,0.000828]
[1729288528571,0.29123278,68296.0,68295.0,0.000828]
[1729288530343,0.29123278,68296.0,68295.0,0.02169019]
[1729288531271,0.27754317,68296.0,68295.0,0.02169019]
[1729288531482,0.29122245,68296.0,68295.0,0.02169019]
[1729288532370,0.27753284,68296.0,68295.0,0.02169019]
[1729288534370,0.27756464,68296.0,68295.0,0.02169019]
[1729288535615,0.19002546,68296.0,68295.0,0.02169019]
[1729288535819,0.06565531,68296.0,68295.0,0.02169019]
[1729288536453,0.06565531,68296.0,68295.0,0.000828]
[1729288540850,0.06445531,68296.0,68295.0,0.000828]
[1729288541736,0.08920118,68298.0,68295.0,0.000828]
[1729288541954,0.02462261,68297.0,68295.0,0.000828]
[1729288542163,0.01367923,68296.0,68295.0,0.000828]
[1729288542599,0.08920118,68298.0,68295.0,0.000828]
[1729288542776,0.01367969,68297.0,68295.0,0.000828]
[1729288542979,0.0136797,68296.0,68295.0,0.000828]
[1729288543183,0.0136797,68296.0,68282.0,0.096656]
[1729288543407,0.04377273,68292.0,68289.0,0.21988493]
[1729288543614,0.04377273,68292.0,68282.0,0.096656]
[1729288543824,0.04377293,68292.0,68282.0,0.096656]
[1729288545826,0.04377293,68291.0,68282.0,0.096656]
[1729288552633,0.04377293,68290.0,68282.0,0.096656]
[1729288553089,0.04377755,68290.0,68282.0,0.096656]
[1729288553320,0.04377755,68289.0,68282.0,0.096656]
[1729288555482,0.0875551,68293.0,68283.0,0.14895915]
[1729288555483,0.0173949,68290.0,68283.0,0.14895915]
[1729288555697,0.0173949,68292.0,68284.0,0.1]
[1729288556129,0.06566633,68295.0,68284.0,0.1]
[1729288556358,0.0793516,68294.0,68284.0,0.1]
[1729288556573,0.06566633,68295.0,68284.0,0.1]
[1729288556994,0.001656,68292.0,68284.0,0.1]
[1729288560631,0.03996067,68295.0,68284.0,0.1]
[1729288560846,0.01368528,68294.0,68284.0,0.1]
[1729288561052,0.03996067,68295.0,68284.0,0.1]
[1729288561250,0.01368528,68294.0,68284.0,0.1]
[1729288561473,0.03996067,68295.0,68284.0,0.1]
[1729288561818,0.01368527,68294.0,68284.0,0.1]
[1729288562038,0.03996067,68295.0,68284.0,0.1]
[1729288562249,0.01368527,68294.0,68284.0,0.1]
[1729288562462,0.03996067,68295.0,68284.0,0.1]
[1729288562679,0.01368526,68294.0,68284.0,0.1]
[1729288562891,0.03996067,68295.0,68284.0,0.1]
[1729288563101,0.01368526,68294.0,68286.0,0.1]
[1729288563318,0.001656,68296.0,68286.0,0.1]
[1729288563775,0.001656,68296.0,68288.0,0.1]
[1729288564203,0.001656,68296.0,68290.0,0.1]
[1729288565330,0.001656,68296.0,68286.0,0.1]
[1729288565555,0.04544344,68296.0,68286.0,0.412393]
[1729288565765,0.04544344,68296.0,68288.0,0.1]
[1729288565978,0.04544344,68296.0,68290.0,0.1]
[1729288567277,0.04544344,68296.0,68286.0,0.1]
[1729288567496,0.04544344,68296.0,68286.0,0.439928]
[1729288567699,0.04544344,68296.0,68288.0,0.1]
[1729288567919,0.04544344,68296.0,68290.0,0.1]
[1729288568133,0.04544344,68296.0,68288.0,0.1]
[1729288568343,0.04544027,68296.0,68288.0,0.1]
[1729288568563,0.04544027,68296.0,68292.0,0.1]
[1729288568847,0.001662,68298.0,68294.0,0.1]
[1729288569077,0.001662,68298.0,68296.0,0.1]
[1729288570373,0.001662,68298.0,68290.0,0.1816]
[1729288570588,0.001662,68298.0,68292.0,0.1]
[1729288570798,0.001662,68298.0,68294.0,0.1]
[1729288571011,0.001662,68298.0,68295.0,0.543454]
[1729288571253,0.001662,68298.0,68296.0,0.440412]
[1729288571494,0.001662,68298.0,68296.0,0.1]
[1729288571751,0.001662,68298.0,68297.0,0.355951]
[1729288571984,0.002,68302.0,68298.0,0.1]
[1729288572221,0.002,68302.0,68298.0,0.777253]
[1729288572450,0.002,68302.0,68299.0,0.106906]
[1729288572701,0.002,68302.0,68300.0,0.1]
[1729288572927,0.002,68302.0,68301.0,0.437675]
[1729288573155,0.002,68302.0,68301.0,0.39870615]
[1729288574546,0.004,68312.0,68302.0,0.1788]
[1729288574781,0.004,68312.0,68304.0,0.1]
[1729288575009,0.004,68312.0,68302.0,0.681782]
[1729288575010,0.004,68312.0,68306.0,0.1]
[1729288575254,0.004,68312.0,68308.0,0.1]
[1729288575495,0.004,68312.0,68308.0,0.24895915]
[1729288578351,0.004,68312.0,68309.0,0.14895915]
[1729288578580,0.001662,68321.0,68310.0,0.1]
[1729288578802,0.001662,68321.0,68312.0,0.1]
[1729288579082,0.001662,68321.0,68312.0,0.14895915]
[1729288579318,0.001662,68321.0,68313.0,0.1]
[1729288579993,0.001662,68321.0,68312.0,0.14895915]
[1729288579994,0.001662,68321.0,68318.0,0.1]
[1729288581374,0.001662,68321.0,68314.0,0.14895915]
[1729288581375,0.001662,68321.0,68315.0,0.1]